[Event "26th Womens ECCC 2022"]
[Site "Mayrhofen"]
[Date "2022.10.05"]
[Round "3.20"]
[White "Thomas, Apolline"]
[Black "Toma, Katarzyna"]
[Result "1/2-1/2"]
[ECO "B24"]
[WhiteElo "1942"]
[BlackElo "2249"]
[Annotator "TA"]
[PlyCount "124"]
[EventDate "2022.10.03"]
[EventType "team-tourn"]
[EventCountry "AUT"]
[SourceTitle "playchess.com"]
[Source "ChessBase"]
[SourceQuality "1"]
[TimeControl "40/5400+30:1800+30"]

{[%evp 9,124,0,4,0,0,4,39,27,27,20,15,20,25,14,27,-21,-16,-31,-15,-21,0,0,0,0,0,-22,-19,-22,-22,-19,-21,-21,-20,-19,-20,-43,-52,-33,-34,-34,-34,-52,-52,-48,-46,-42,-41,-39,-13,-10,0,-14,-17,-18,-9,-36,0,-36,-37,-37,-37,-55,-51,-55,-63,-72,-59,-54,-47,-94,-88,-80,-17,-31,0,0,0,0,0,0,0,0,0,0,0,0,0,0,0,0,0,0,0,0,0,0,0,0,0,0,0,0,0,0,0,0,0,0,0,0,0,0,0,0,0,0,0]} 1. e4 {[%emt 0:00:03]} c5 {[%emt 0:00:07]} 2. Nc3 {[%emt 0:00:09]} Nc6 {[%emt 0:00:50]} 3. Bb5 {[%emt 0:00:14]} Nd4 {[%emt 0:00:58]} 4. Bc4 {[%emt 0:00:17]} a6 {[%emt 0:00:30]} 5. a4 {[%emt 0:00:28]} e6 {[%emt 0:01:09]} 6. Nge2 {[%emt 0:00:46] B23: Closed Sicilian: Lines without g3.} Nf6 {[%emt 0:10:02]} 7. O-O {[%emt 0:01:01]} Nxe4 {[%emt 0:06:58]} 8. Nxe4 {[%emt 0:00:19] [#] Strongly threatening Nxd4. White is slightly better.} d5 {[%emt 0:00:06]} 9. d3 {[%emt 0:04:41]} dxc4 {[%emt 0:03:45]} 10. dxc4 {[%emt 0:00:07]} Be7 {[%emt 0:00:19] Inhibits Bg5.} 11. Be3 {[%emt 0:03:47][%cal Re2d4]} e5 {[%emt 0:05:35] [#]} 12. f3 $146 {[%emt 0:22:18]} (12. f4 $142) ({Predecessor:} 12. f4 Be6 13. b3 f5 14. N4c3 Qc7 15. Nd5 Bxd5 16. cxd5 O-O 17. fxe5 Qxe5 18. Bxd4 cxd4 {½-½ (30) Heberla,B (2447)-Makarov,M (2514) Pardubice 2005}) 12... O-O {[%emt 0:02:52]} 13. N2c3 {[%emt 0:02:20]} Be6 {[%emt 0:06:39]} 14. Nd5 $1 {[%emt 0:04:43]} Bxd5 {[%emt 0:08:10]} 15. cxd5 {[%emt 0:00:04]} Qxd5 {[%emt 0:03:21] White must now prevent ...f5.} 16. c3 {[%emt 0:05:55]} Qb3 {[%emt 0:00:06]} 17. Bxd4 {[%emt 0:01:20]} (17. Bf2 $5 {[%cal Rc3d4]}) 17... Qxd1 {[%emt 0:00:10]} 18. Raxd1 {[%emt 0:00:53]} cxd4 {[%emt 0:01:33]} 19. cxd4 {[%emt 0:00:09]} f5 {[%emt 0:01:13]} 20. Nf2 {[%emt 0:00:56]} exd4 {[%emt 0:04:41]} 21. Rxd4 {[%emt 0:00:08]} Rad8 {[%emt 0:04:20]} 22. Rxd8 {[%emt 0:03:32]} Rxd8 $11 {[%emt 0:00:13][%mdl 4096] Endgame KRB-KRN} 23. Rd1 {[%emt 0:00:56] Inhibits Rd2.} Kf7 {[%emt 0:03:27]} 24. Rxd8 {[%emt 0:02:40]} Bxd8 $15 {[%emt 0:00:02] KB-KN} 25. Kf1 {[%emt 0:00:13]} Ke6 {[%emt 0:00:40]} 26. Ke2 $1 {[%emt 0:00:20]} Kd5 {[%emt 0:00:14]} 27. Kd3 $1 {[%emt 0:00:38]} Bc7 {[%emt 0:03:43]} 28. g3 {[%emt 0:24:28]} h6 {[%emt 0:03:34]} 29. Nd1 {[%emt 0:00:55]} Bb6 {[%emt 0:06:52]} 30. Nc3+ {[%emt 0:01:08]} Kc5 {[%emt 0:02:50]} 31. b3 {[%emt 0:02:33]} g6 {[%emt 0:01:04]} 32. g4 {[%emt 0:04:42]} Bd8 {[%emt 0:04:04]} 33. Ne2 {[%emt 0:00:44]} fxg4 {[%emt 0:02:50]} 34. fxg4 {[%emt 0:00:12]} Bc7 {[%emt 0:00:09]} 35. h3 {[%emt 0:00:42]} Kd5 {[%emt 0:00:05]} 36. Nd4 {[%emt 0:07:49]} Ke5 {[%emt 0:01:05]} 37. Ne2 {[%emt 0:02:27]} Bb6 {[%emt 0:01:08]} 38. b4 {[%emt 0:01:58]} Bf2 {[%emt 0:00:50]} 39. b5 {[%emt 0:01:10]} (39. Nc3 $1 $15) 39... axb5 {[%emt 0:02:53]} 40. axb5 {[%emt 0:00:05]} b6 {[%emt 0:02:17]} ({Black should play} 40... h5 $17) 41. Nc3 $11 {[%emt 0:05:56]} Kf4 {[%emt 0:04:32]} 42. Nd5+ {[%emt 0:18:01] The position is equal.} Kg3 {[%emt 0:02:04]} 43. Ke4 {[%emt 0:00:15]} Bc5 {[%emt 0:02:04]} (43... Kxh3 $5 44. Kf3 $8 Bc5 $11) 44. Nf4 {[%emt 0:01:14]} g5 {[%emt 0:01:44]} 45. Ne6 {[%emt 0:00:54]} Bg1 {[%emt 0:02:06]} 46. Kf5 {[%emt 0:00:25]} Kxh3 {[%emt 0:06:32]} 47. Nd8 {[%emt 0:00:19]} Bc5 {[%emt 0:09:19]} 48. Nf7 {[%emt 0:00:23]} Bf8 {[%emt 0:01:22]} 49. Ne5 {[%emt 0:01:30]} Bg7 {[%emt 0:00:14] [#] ( -> ...Bxe5)} 50. Nf7 {[%emt 0:01:04]} Kg3 {[%emt 0:02:00]} 51. Kg6 {[%emt 0:00:34][%csl LRg7,LRh6]} Bf8 {[%emt 0:00:14]} 52. Ne5 {[%emt 0:00:06]} Bd6 {[%emt 0:03:56]} 53. Nf7 {[%emt 0:01:08]} Bf8 {[%emt 0:01:17]} 54. Ne5 {[%emt 0:00:05]} Bb4 {[%emt 0:05:11]} 55. Kxh6 {[%emt 0:00:36]} Bc3 {[%emt 0:00:16]} 56. Nd7 {[%emt 0:03:01]} Kxg4 {[%emt 0:00:11] Hoping for ...Bd4.} 57. Nxb6 {[%emt 0:00:10]} Kh4 {[%emt 0:02:13]} 58. Nd5 {[%emt 0:02:55]} Bd4 {[%emt 0:00:17]} 59. b6 {[%emt 0:00:42]} g4 {[%emt 0:00:34][%cal Od4b6]} 60. b7 {[%emt 0:00:25]} Ba7 {[%emt 0:00:11]} 61. Ne7 {[%emt 0:01:22]} Kh3 {[%emt 0:00:50]} 62. Nf5 {[%emt 0:00:22]} g3 {[%emt 0:00:48] Weighted Error Value: White=0.06 (flawless) /Black=0.06 (flawless)} 1/2-1/2

[Event "26th Womens ECCC 2022"]
[Site "Mayrhofen"]
[Date "2022.10.05"]
[Round "3.21"]
[White "Mayrhuber, Nikola"]
[Black "Eric, Jovana"]
[Result "1-0"]
[ECO "A21"]
[WhiteElo "2117"]
[BlackElo "2252"]
[Annotator "TA"]
[PlyCount "63"]
[EventDate "2022.10.03"]
[EventType "team-tourn"]
[EventCountry "AUT"]
[SourceTitle "playchess.com"]
[Source "ChessBase"]
[SourceQuality "1"]
[TimeControl "40/5400+30:1800+30"]

{[%evp 9,63,-8,-2,-13,-4,-12,-8,-19,-11,-6,0,0,0,0,0,-10,20,-17,57,10,129,56,89,63,147,51,124,102,127,147,243,212,356,297,458,460,668,668,638,631,618,488,472,441,831,811,819,827,810,800,2413,2390,2310,2202,2014,1645]} 1. c4 {[%emt 0:00:04]} e5 {[%emt 0:00:11]} 2. Nc3 {[%emt 0:00:16]} Bb4 {[%emt 0:00:10]} 3. Qc2 {[%emt 0:07:33]} Nf6 {[%emt 0:01:20]} 4. e3 {[%emt 0:03:08]} O-O {[%emt 0:01:45]} 5. a3 {[%emt 0:03:30]} Bxc3 {[%emt 0:02:50]} 6. Qxc3 {[%emt 0:00:05] A21: English Opening: 1...e5 2 Nc3.} Nc6 {[%emt 0:00:13]} 7. Nf3 {[%emt 0:05:20]} Re8 {[%emt 0:02:38]} 8. d3 {[%emt 0:07:27] The position is equal.} d6 {[%emt 0:06:54]} 9. Be2 {[%emt 0:00:18]} a5 {[%emt 0:00:57]} 10. b3 {[%emt 0:04:05] [#]} e4 $146 {[%emt 0:02:55]} ({Predecessor:} 10... h6 11. O-O Bg4 12. Bb2 Qe7 13. Rfe1 Nd8 14. b4 a4 15. Rac1 b6 16. h3 Bh5 {½-½ (41) Iruzubieta Villaluenga,J (2412)-Ruiz Gomez,A (2409) Mondragon 2013}) 11. Nd2 {[%emt 0:01:12]} exd3 {[%emt 0:02:01]} 12. Bxd3 {[%emt 0:00:08]} Ne5 {[%emt 0:03:45]} 13. Bb2 {[%emt 0:01:54]} Bg4 {[%emt 0:15:14]} (13... Nxd3+ $11 14. Qxd3 Nd7) 14. O-O {[%emt 0:11:41]} (14. Bb1 $14 {was preferrable.}) 14... Qd7 {[%emt 0:08:52]} (14... Nxd3 $11 15. Qxd3 Bc8) 15. f3 {[%emt 0:07:32]} ({White should play} 15. Bc2 $1 $16) 15... Bf5 {[%emt 0:04:47]} 16. e4 {[%emt 0:03:42]} Bg6 {[%emt 0:00:07]} ({Black should try} 16... Nxd3 $14 17. Qxd3 Bg6) 17. Rae1 {[%emt 0:00:32]} (17. Bc2 $1 $16) 17... Qc6 {[%emt 0:06:30]} ({Better is} 17... Nxd3 $14 18. Qxd3 Qe6) 18. Bb1 {[%emt 0:05:35]} Qb6+ {[%emt 0:04:07] [#]} 19. Kh1 $1 {[%emt 0:00:28]} Re7 {[%emt 0:18:28] [#]} (19... Ned7 $16 20. f4 a4) 20. f4 $1 $18 {[%emt 0:02:45][%cal Bf3f4,Bf4f5][%mdl 32]} Neg4 {[%emt 0:01:04]} (20... Ned7 $142 21. f5 Bh5) 21. Qg3 {[%emt 0:01:02]} h5 {[%emt 0:03:55]} (21... Rd8 $142 22. h3 Ne5 23. fxe5 dxe5) 22. h3 {[%emt 0:01:57] White is clearly winning.} Rae8 {[%emt 0:09:36]} (22... h4 $142 23. Qxh4 Ne5) 23. hxg4 {[%emt 0:01:46]} Nxg4 {[%emt 0:00:07]} 24. f5 {[%emt 0:06:16]} Bh7 {[%emt 0:00:11]} 25. Rf4 {[%emt 0:06:07]} f6 {[%emt 0:01:11]} 26. Qh4 {[%emt 0:03:50]} Ne3 {[%emt 0:00:50]} (26... Ne5 $142 27. Rff1 Rd8) 27. Qxh5 {[%emt 0:01:55] Strongly threatening Rh4.} Nxf5 {[%emt 0:00:28]} 28. Rxf5 {[%emt 0:02:56]} Bxf5 {[%emt 0:00:55]} 29. Qxf5 {[%emt 0:00:27][%cal Oe4e5] Hoping for e5!} c6 {[%emt 0:01:02]} 30. e5 {[%emt 0:03:21] White wants to mate with Qh7+.} dxe5 {[%emt 0:00:16]} 31. Qh7+ {[%emt 0:01:31]} Kf8 {[%emt 0:00:11]} 32. Bg6 {[%emt 0:00:33] Weighted Error Value: White=0.28 (precise) /Black=0.64} 1-0

[Event "26th Womens ECCC 2022"]
[Site "Mayrhofen"]
[Date "2022.10.05"]
[Round "3.22"]
[White "Blagojevic, Tijana"]
[Black "Schnegg, Anna-Lena"]
[Result "1/2-1/2"]
[ECO "C26"]
[WhiteElo "2266"]
[BlackElo "2154"]
[Annotator "TA"]
[PlyCount "114"]
[EventDate "2022.10.03"]
[EventType "team-tourn"]
[EventCountry "AUT"]
[SourceTitle "playchess.com"]
[Source "ChessBase"]
[SourceQuality "1"]
[TimeControl "40/5400+30:1800+30"]

{[%evp 9,114,-29,44,31,56,46,66,46,41,39,67,67,64,69,83,83,86,45,42,47,50,2,7,0,0,0,0,0,18,9,27,11,15,0,0,0,20,17,25,0,59,72,59,66,151,139,142,135,156,151,154,121,235,207,177,54,52,52,59,54,81,92,87,82,275,258,258,258,229,66,66,66,66,66,66,66,66,10,19,19,20,10,10,10,10,10,10,10,10,0,0,0,13,13,13,13,13,13,13,13,13,13,13,0,0,0,0]} 1. e4 {[%emt 0:00:05]} e5 {[%emt 0:00:12]} 2. Nc3 {[%emt 0:00:06]} Nf6 {[%emt 0:01:23]} 3. d4 {[%emt 0:00:09]} exd4 {[%emt 0:02:56]} 4. Qxd4 {[%emt 0:00:07]} Nc6 {[%emt 0:01:30]} 5. Qd3 {[%emt 0:00:32]} d6 {[%emt 0:08:01]} (5... Bc5 $11) 6. Bf4 {[%emt 0:05:13] C26: Vienna Game: 2...Nf6, sidelines .} Be6 {[%emt 0:04:07] [#]} 7. O-O-O $146 {[%emt 0:00:43]} ({Predecessor:} 7. f3 a6 8. Qd2 Ne5 9. O-O-O Qd7 10. Bxe5 dxe5 11. Qg5 Qc6 12. Qxe5 Nd7 13. Qd4 {1-0 (52) Koutsouraki,A (1463)-Vakali,A (1344) Trikala 2021}) 7... Qd7 {[%emt 0:01:11]} 8. Qd2 {[%emt 0:14:15] White is slightly better.} a6 {[%emt 0:05:19]} 9. f3 {[%emt 0:07:37]} Be7 {[%emt 0:23:26]} 10. Nge2 {[%emt 0:01:48]} O-O-O {[%emt 0:09:02]} 11. Nd5 {[%emt 0:00:59]} Kb8 {[%emt 0:03:52]} 12. Be3 {[%emt 0:03:45] White is more active.} Ne5 {[%emt 0:09:11]} 13. Nef4 {[%emt 0:00:52]} ({But not} 13. Qd4 $6 c5 14. Qc3 Nxd5 15. exd5 Bf5 $11) 13... Bxd5 {[%emt 0:04:41]} 14. Nxd5 {[%emt 0:03:08]} Nxd5 {[%emt 0:01:23]} 15. exd5 {[%emt 0:07:02]} (15. Qxd5 $14 {should be considered.} Qe6 16. Be2) 15... Qa4 $11 {[%emt 0:02:44]} 16. Kb1 {[%emt 0:00:24]} Bf6 {[%emt 0:01:38]} 17. Qd4 {[%emt 0:12:06]} Qxd4 {[%emt 0:00:18]} 18. Bxd4 {[%emt 0:00:03]} Rhe8 {[%emt 0:03:01]} 19. c3 {[%emt 0:00:30]} Rd7 {[%emt 0:02:35]} 20. Kc2 {[%emt 0:05:06]} Rde7 {[%emt 0:00:42]} 21. a4 {[%emt 0:00:52]} Nd7 {[%emt 0:01:37]} 22. Bf2 {[%emt 0:01:17]} Nc5 {[%emt 0:05:26]} 23. a5 {[%emt 0:01:50]} Bg5 {[%emt 0:02:36][%cal Oe7e2] aiming for ...Re2+!} 24. Bd4 {[%emt 0:06:50]} f5 {[%emt 0:03:03]} ({Better is} 24... Nd7 $1 $11) 25. b4 $1 $14 {[%emt 0:06:05][%cal Bb2b4,Bb4b5,Bb5a6][%mdl 32]} Nd7 {[%emt 0:00:05]} 26. b5 {[%emt 0:01:53]} Be3 {[%emt 0:01:51]} (26... axb5 $14 27. Bxb5 Bf6) 27. bxa6 $16 {[%emt 0:03:19]} Bxd4 {[%emt 0:01:27]} 28. cxd4 {[%emt 0:00:31]} b6 {[%emt 0:00:40]} 29. axb6 {[%emt 0:08:33]} Nxb6 {[%emt 0:00:19]} 30. Bb5 $1 {[%emt 0:00:24]} Nxd5 {[%emt 0:00:25]} (30... Rf8 $16 {might work better.}) 31. Bxe8 $18 {[%emt 0:03:26]} Ne3+ {[%emt 0:00:14] [#]} 32. Kd2 {[%emt 0:00:13]} (32. Kd3 $1 $18 {[%cal Oa6a7] Intending a7+! and mate.} Nxd1 33. Rxd1 Rxe8 34. Rb1+ Ka7 35. Rb7+ Kxa6 36. Rxc7) 32... Nxd1 $14 {[%emt 0:00:09]} 33. Rxd1 {[%emt 0:01:07]} Rxe8 {[%emt 0:00:05][%mdl 4096] Endgame KR-KR} 34. Rb1+ {[%emt 0:00:05]} Ka7 {[%emt 0:00:56]} 35. Rb7+ {[%emt 0:00:06]} Kxa6 {[%emt 0:00:02]} 36. Rxc7 {[%emt 0:00:03]} Rg8 {[%emt 0:01:38]} (36... Kb5 $16) 37. Rc6+ {[%emt 0:00:17]} Kb5 {[%emt 0:00:41]} 38. Rxd6 {[%emt 0:00:03]} Ra8 {[%emt 0:00:29] [#]} 39. Rd5+ $2 {[%emt 0:01:01]} (39. Ke3 $1 $18) 39... Kc4 {[%emt 0:00:14]} 40. Rxf5 {[%emt 0:00:07] And now Ke3 would win.} Kxd4 {[%emt 0:00:42]} 41. Rf4+ {[%emt 0:31:04]} Ke5 {[%emt 0:01:11]} 42. Re4+ {[%emt 0:00:00]} Kf5 {[%emt 0:03:02]} 43. Re2 {[%emt 0:00:00]} (43. Ke1 $14) 43... Ra3 {[%emt 0:01:14] The position is equal.} 44. Ke1 {[%emt 0:00:00]} g5 {[%emt 0:04:56]} 45. Rb2 {[%emt 0:00:00]} h5 {[%emt 0:04:19]} 46. Kf2 {[%emt 0:00:00]} h4 {[%emt 0:01:51]} 47. Rb5+ {[%emt 0:00:00]} Kg6 {[%emt 0:02:47]} 48. Rb6+ {[%emt 0:00:00]} Kf5 {[%emt 0:02:25]} 49. g4+ {[%emt 0:00:00]} hxg3+ {[%emt 0:04:35]} 50. Kxg3 {[%emt 0:00:00]} Ra4 {[%emt 0:01:12]} 51. Rb5+ {[%emt 0:00:00]} Kf6 {[%emt 0:00:24]} 52. Rb8 {[%emt 0:00:00]} Kf5 {[%emt 0:00:57]} 53. Re8 {[%emt 0:00:00]} Rb4 {[%emt 0:02:02]} 54. Re4 {[%emt 0:00:00]} Rb2 {[%emt 0:01:35]} 55. Ra4 {[%emt 0:00:00]} Rb3 {[%emt 0:00:53]} 56. h4 {[%emt 0:00:00]} gxh4+ {[%emt 0:00:18]} 57. Rxh4 {[%emt 0:00:00]} Kg5 {[%emt 0:01:42] Weighted Error Value: White=0.16 (very precise) /Black=0.20 (precise)} 1/2-1/2

[Event "26th Womens ECCC 2022"]
[Site "Mayrhofen"]
[Date "2022.10.05"]
[Round "3.23"]
[White "Konecny, Sophie"]
[Black "Gajcin, Marina"]
[Result "0-1"]
[ECO "D97"]
[WhiteElo "1848"]
[BlackElo "2228"]
[Annotator "TA"]
[PlyCount "34"]
[EventDate "2022.10.03"]
[EventType "team-tourn"]
[EventCountry "AUT"]
[SourceTitle "playchess.com"]
[Source "ChessBase"]
[SourceQuality "1"]
[TimeControl "40/5400+30:1800+30"]

{[%evp 19,34,4,9,-52,-42,-57,-62,-145,-144,-154,-152,-465,-464,-818,-807,-777,-794]} 1. d4 {[%emt 0:00:03]} Nf6 {[%emt 0:00:05]} 2. c4 {[%emt 0:00:45]} g6 {[%emt 0:00:08]} 3. Nc3 {[%emt 0:00:21]} d5 {[%emt 0:00:11]} 4. Nf3 {[%emt 0:00:38]} Bg7 {[%emt 0:00:08]} 5. Qb3 {[%emt 0:00:39]} dxc4 {[%emt 0:05:15]} 6. Qxc4 {[%emt 0:00:06]} O-O {[%emt 0:00:05]} 7. e4 {[%emt 0:00:26]} Nc6 {[%emt 0:00:15]} 8. Be2 {[%emt 0:01:58]} Bg4 {[%emt 0:17:49]} 9. Be3 {[%emt 0:07:17]} Bxf3 {[%emt 0:04:25]} 10. gxf3 {[%emt 0:05:08]} e5 {[%emt 0:11:54][%cal Be7e5,Be5d4,Bd4d3][%mdl 32]} 11. d5 {[%emt 0:03:53] D98: Grünfeld: Russian System: 7 e4 Bg4 .} (11. dxe5 $11 Nxe5 12. Qb4) 11... Nd4 $1 $15 {[%emt 0:06:38] Strongly threatening ...Nc2+.} 12. Bxd4 {[%emt 0:05:54]} exd4 {[%emt 0:00:06]} 13. Nb5 {[%emt 0:08:20]} (13. Qxd4 $15 Nh5 14. Qd2) 13... c6 $17 {[%emt 0:11:25]} 14. dxc6 {[%emt 0:03:16]} bxc6 {[%emt 0:00:53] [#]} 15. Qxc6 $146 {[%emt 0:02:54] [#]} (15. Nxd4 $17 {is tougher.} Nxe4 16. fxe4 Bxd4 17. O-O-O Qg5+ 18. Kb1) ({Predecessor:} 15. Nxd4 Nxe4 16. Rd1 Nxf2 17. Kxf2 Qh4+ 18. Kg2 Qg5+ 19. Kf1 c5 20. Nb3 Bxb2 21. h4 {1-0 (58) Vargas Maliqueo,I (1941)-Puebla Arredondo,C (2167) Quilpue 2022}) 15... d3 $19 {[%emt 0:03:50] Black is clearly winning.} 16. Bd1 {[%emt 0:05:57]} (16. Rd1 $142 Qa5+ 17. Qc3 Qxb5 18. Qxd3 Qxb2 19. Qd2) 16... Rc8 {[%emt 0:06:13]} 17. Qd6 {[%emt 0:07:00]} Qa5+ {[%emt 0:00:58] White did not feel at home in the position after the opening.  Weighted Error Value: White=1.39/Black=0.00 (flawless)} 0-1

[Event "26th Womens ECCC 2022"]
[Site "Mayrhofen"]
[Date "2022.10.05"]
[Round "3.24"]
[White "Zarkovic, Mila"]
[Black "Wu, Min"]
[Result "1-0"]
[ECO "C88"]
[WhiteElo "2219"]
[BlackElo "1934"]
[Annotator "TA"]
[PlyCount "57"]
[EventDate "2022.10.03"]
[EventType "team-tourn"]
[EventCountry "AUT"]
[SourceTitle "playchess.com"]
[Source "ChessBase"]
[SourceQuality "1"]
[TimeControl "40/5400+30:1800+30"]

{[%evp 14,57,20,21,65,64,61,66,64,64,72,-81,-54,-78,-68,-73,-31,0,124,133,107,126,385,381,350,352,439,424,485,338,512,483,493,428,594,577,575,562,967,1043,1034,1038,1027,1000,1377,1368]} 1. e4 {[%emt 0:00:02]} e5 {[%emt 0:00:05]} 2. Nf3 {[%emt 0:00:14]} Nc6 {[%emt 0:00:07]} 3. Bb5 {[%emt 0:00:12][%cal Bf1b5,Bb5a4,Ba4b3][%mdl 32]} a6 {[%emt 0:00:06]} 4. Ba4 {[%emt 0:00:04]} Nf6 {[%emt 0:00:22]} 5. O-O {[%emt 0:00:50]} Be7 {[%emt 0:00:18]} 6. Re1 {[%emt 0:00:50]} b5 {[%emt 0:00:10]} 7. Bb3 {[%emt 0:00:05]} O-O {[%emt 0:00:52]} 8. a4 {[%emt 0:02:30][%cal Ba2a4,Ba4b5,Bb5c6][%mdl 32] Hoping for axb5.} d5 {[%emt 0:01:34] C88: Closed Ruy Lopez: Anti-Marshall Systems.} 9. axb5 {[%emt 0:43:31]} dxe4 {[%emt 0:01:22]} 10. bxc6 {[%emt 0:00:17]} exf3 {[%emt 0:00:07] White is slightly better.} 11. Qxf3 {[%emt 0:07:27]} e4 {[%emt 0:00:18]} (11... Bg4 12. Qc3 $16) 12. Qe3 {[%emt 0:08:59] [#]} (12. Qe2 $16 {keeps the pressure on.}) 12... Ng4 $1 $17 {[%emt 0:01:54]} 13. Qxe4 {[%emt 0:03:47]} Bc5 {[%emt 0:09:56]} 14. d4 $1 {[%emt 0:05:20] [#]} Bxd4 $146 {[%emt 0:20:11]} (14... Qh4 $5 {[%cal Rh4f2]} 15. Be3 (15. dxc5 $2 Qxf2+ 16. Kh1 Qh4 $19) 15... Qxh2+ 16. Kf1 Bd6 $15) ({Predecessor:} 14... Qh4 15. Be3 Qxh2+ 16. Kf1 Bd6 17. Nc3 Qh5 18. Bf4 Nf6 19. Qe3 Qh1+ 20. Ke2 Qxg2 21. Bxd6 cxd6 {0-1 (62) Roseneck,J (2417)-Krastev,A (2340) Berlin 2020}) 15. Re2 {[%emt 0:09:40]} Be3 {[%emt 0:44:09] [#]} 16. Nd2 $1 $36 {[%emt 0:08:40][%mdl 2048] White has strong initiative. Active counter play!} (16. Rxe3 Nxe3 17. Nc3 Re8 $15) 16... Qd6 {[%emt 0:09:23]} 17. Nf1 {[%emt 0:03:47]} Qd1 $2 {[%emt 0:06:06][%mdl 8192] Black cannot hold the game after this.} (17... Bxc1 $16 {was necessary.} 18. Rxc1 Nf6) 18. Rxe3 $18 {[%emt 0:00:10] Chess con chili.} ({Not} 18. Bxe3 Qxe2 19. Bc4 Nf6 20. Qxh7+ (20. Bxe2 Nxe4 21. Bf4 Be6 $14) 20... Kxh7 $11) 18... Nxe3 {[%emt 0:00:10]} 19. Qxe3 {[%emt 0:00:42]} ({Don't do} 19. fxe3 Be6 20. Bc4 Bxc4 21. Qxc4 Rfb8 $18) 19... Bg4 {[%emt 0:01:01]} 20. c4 {[%emt 0:01:37]} Qd8 {[%emt 0:01:29]} 21. Qg5 {[%emt 0:01:16]} Qb8 {[%emt 0:00:46]} (21... Qxg5 $142 22. Bxg5 Rfb8) 22. Ra3 {[%emt 0:00:38] White is clearly winning.} Be2 {[%emt 0:00:30]} 23. Be3 {[%emt 0:00:45][%cal Bc1e3,Be3d2,Bd2c3][%mdl 32]} Qb4 {[%emt 0:00:26]} 24. Bd2 {[%emt 0:00:27] Prevents Qe1.} Qd6 {[%emt 0:00:18]} 25. Bc3 {[%emt 0:00:18][%csl Gc3][%cal Rg5g7]} f6 {[%emt 0:00:43]} 26. c5+ {[%emt 0:00:07][%cal Bc4c5,Bc5d6,Bd6d7][%mdl 32]} Kh8 {[%emt 0:00:00]} 27. cxd6 {[%emt 0:00:00] And now Qf5 would win.} fxg5 {[%emt 0:00:02]} 28. d7 {[%emt 0:00:00]} Rf5 {[%emt 0:01:19]} 29. Ng3 {[%emt 0:00:10][%csl LRe2,LRf5] Weighted Error Value: White=0.34/Black=0.70} 1-0

[Event "26th Womens ECCC 2022"]
[Site "Mayrhofen"]
[Date "2022.10.05"]
[Round "3.25"]
[White "Rakhmangulova, Anastasiya"]
[Black "Buksa, Nataliya"]
[Result "1-0"]
[ECO "B34"]
[WhiteElo "2261"]
[BlackElo "2413"]
[Annotator "TA"]
[PlyCount "57"]
[EventDate "2022.10.03"]
[EventType "team-tourn"]
[EventCountry "AUT"]
[SourceTitle "playchess.com"]
[Source "ChessBase"]
[SourceQuality "1"]
[TimeControl "40/5400+30:1800+30"]

{[%evp 19,57,0,0,0,9,10,19,17,18,0,22,0,0,-4,0,0,0,0,0,0,0,0,0,0,23,14,108,108,129,124,583,578,656,658,939,937,29975,29976,5265,5214]} 1. e4 {[%emt 0:00:02]} c5 {[%emt 0:00:04]} 2. Nf3 {[%emt 0:00:05]} Nc6 {[%emt 0:00:03]} 3. d4 {[%emt 0:00:04]} cxd4 {[%emt 0:00:10]} 4. Nxd4 {[%emt 0:00:06]} Nf6 {[%emt 0:00:03]} 5. Nc3 {[%emt 0:00:05]} e5 {[%emt 0:00:02]} 6. Ndb5 {[%emt 0:00:05]} d6 {[%emt 0:00:03]} 7. Nd5 {[%emt 0:00:05]} Nxd5 {[%emt 0:00:05]} 8. exd5 {[%emt 0:00:04]} Nb8 {[%emt 0:00:02][%cal Bc6b8,Bb8d7,Bd7c5][%mdl 32]} 9. a4 {[%emt 0:00:06]} Be7 {[%emt 0:00:20]} 10. Be2 {[%emt 0:00:04]} O-O {[%emt 0:00:42]} 11. O-O {[%emt 0:00:06] B33: Sicilian: Pelikan and Sveshnikov Variations.} Nd7 {[%emt 0:00:18]} 12. Bd2 {[%emt 0:00:12]} a6 {[%emt 0:07:49] 12...a6 scores better than 12...f5.} 13. Na3 {[%emt 0:00:44] The position is equal.} a5 {[%emt 0:00:34]} 14. Nb5 {[%emt 0:00:57]} Nc5 {[%emt 0:00:52] [#]} 15. Kh1 $146 {[%emt 0:10:26]} ({Predecessor:} 15. c3 Bd7 16. b4 Ne4 17. Be1 axb4 18. cxb4 Rc8 19. a5 Bg5 20. Qb3 Bxb5 21. Bxb5 {1-0 (49) Abdusattorov,N (2661)-Aryan,C (2609) Sharjah 2022}) 15... Bd7 {[%emt 0:05:58]} 16. f4 {[%emt 0:09:47]} exf4 {[%emt 0:02:46]} 17. Bxf4 {[%emt 0:00:45]} Bxb5 {[%emt 0:00:42]} 18. Bxb5 {[%emt 0:01:09]} Bg5 {[%emt 0:03:10]} 19. Qg4 {[%emt 0:04:18]} Bxf4 {[%emt 0:05:54]} 20. Qxf4 {[%emt 0:03:25]} f5 {[%emt 0:02:41]} 21. Rae1 {[%emt 0:05:30]} Qf6 {[%emt 0:03:03]} 22. c3 {[%emt 0:05:32][%cal Bc2c3,Bc3b4][%mdl 32]} Rad8 {[%emt 0:35:36] [#]} (22... Qd8 $11 {remains equal.}) 23. g4 $1 $16 {[%emt 0:06:01] White is more active.} g6 {[%emt 0:00:57]} 24. gxf5 {[%emt 0:08:07]} gxf5 $2 {[%emt 0:03:28][%mdl 8192] [#] Loses the game.} (24... Qxf5 $16 {is tougher.} 25. Qxf5 Rxf5) 25. b4 $1 $18 {[%emt 0:02:26]} axb4 {[%emt 0:06:32]} 26. cxb4 {[%emt 0:00:29]} Nd7 {[%emt 0:03:44]} 27. Re6 {[%emt 0:04:04]} Qf7 {[%emt 0:00:49]} 28. Rg1+ {[%emt 0:00:38]} Kh8 {[%emt 0:00:04]} 29. Bxd7 {[%emt 0:00:05] Weighted Error Value: White=0.03 (flawless) /Black=0.86} 1-0